[Event "Titled Tuesday Blitz June 20 Early 2023"]
[White "Rohith Krishna S"]
[Black "Durarbayli, Vasif"]
[WhiteFideId "46617051"]
[BlackFideId "13402935"]
[WhiteElo "2270"]
[BlackElo "2551"]
[Result "0-1"]
[Round "8"]
[TimeControl "180+2"]
[Date "2023.06.20"]
[WhiteClock "0:00:13"]
[BlackClock "0:00:04"]
[Board "22"]

1. Nf3 {[%clk 0:03:00]}  d5 {[%clk 0:03:00]} 2. g3 {[%clk 0:03:00]}  g6 {[%clk 0:02:57]} 3. Bg2 {[%clk 0:02:59]}  Bg7 {[%clk 0:02:58]} 4. d4 {[%clk 0:03:00]}  c6 {[%clk 0:02:58]} 5. O-O {[%clk 0:03:00]}  Nd7 {[%clk 0:02:58]} 6. Nbd2 {[%clk 0:02:58]}  Ngf6 {[%clk 0:02:55]} 7. c4 {[%clk 0:02:58]}  O-O {[%clk 0:02:54]} 8. b3 {[%clk 0:02:57]}  a5 {[%clk 0:02:54]} 9. Bb2 {[%clk 0:02:56]}  b5 {[%clk 0:02:48]} 10. Ne5 {[%clk 0:02:55]}  Qb6 {[%clk 0:02:46]} 11. c5 {[%clk 0:02:39]}  Qc7 {[%clk 0:02:39]} 12. f4 {[%clk 0:02:39]}  b4 {[%clk 0:02:36]} 13. e4 {[%clk 0:02:38]}  Ba6 {[%clk 0:02:33]} 14. Re1 {[%clk 0:02:35]}  dxe4 {[%clk 0:02:29]} 15. Nxe4 {[%clk 0:02:35]}  Nd5 {[%clk 0:02:26]} 16. Ng5 {[%clk 0:02:25]}  Nxe5 {[%clk 0:02:25]} 17. dxe5 {[%clk 0:02:08]}  Rfd8 {[%clk 0:01:58]} 18. Qf3 {[%clk 0:02:07]}  Qa7 {[%clk 0:01:52]} 19. Rac1 {[%clk 0:02:06]}  Bc8 {[%clk 0:01:29]} 20. g4 {[%clk 0:01:51]}  Bh6 {[%clk 0:00:49]} 21. h4 {[%clk 0:01:48]}  e6 {[%clk 0:00:43]} 22. Rc2 {[%clk 0:01:30]}  a4 {[%clk 0:00:40]} 23. Kh2 {[%clk 0:01:26]}  axb3 {[%clk 0:00:40]} 24. axb3 {[%clk 0:01:27]}  Qe7 {[%clk 0:00:40]} 25. Bc1 {[%clk 0:01:21]}  Ra1 {[%clk 0:00:37]} 26. Rf1 {[%clk 0:01:09]}  Ba6 {[%clk 0:00:22]} 27. Rff2 {[%clk 0:01:09]}  Nc3 {[%clk 0:00:22]} 28. Bb2 {[%clk 0:01:08]}  Rb1 {[%clk 0:00:16]} 29. Bxc3 {[%clk 0:01:04]}  bxc3 {[%clk 0:00:17]} 30. Rxc3 {[%clk 0:01:03]}  Rd5 {[%clk 0:00:12]} 31. Qe4 {[%clk 0:00:57]}  Bxg5 {[%clk 0:00:12]} 32. hxg5 {[%clk 0:00:56]}  Rbd1 {[%clk 0:00:10]} 33. Qa4 {[%clk 0:00:49]}  Bb5 {[%clk 0:00:10]} 34. Qa5 {[%clk 0:00:38]}  R5d4 {[%clk 0:00:11]} 35. Rh3 {[%clk 0:00:33]}  Rc1 {[%clk 0:00:08]} 36. b4 {[%clk 0:00:32]}  Rdd1 {[%clk 0:00:07]} 37. Qa8+ {[%clk 0:00:31]}  Rd8 {[%clk 0:00:07]} 38. Qa3 {[%clk 0:00:30]}  Rcd1 {[%clk 0:00:04]} 39. Qg3 {[%clk 0:00:30]}  Qf8 {[%clk 0:00:04]} 40. f5 {[%clk 0:00:28]}  exf5 {[%clk 0:00:04]} 41. gxf5 {[%clk 0:00:28]}  R1d3 {[%clk 0:00:05]} 42. Bf3 {[%clk 0:00:23]}  gxf5 {[%clk 0:00:04]} 43. Qf4 {[%clk 0:00:21]}  Qg7 {[%clk 0:00:04]} 44. Qxf5 {[%clk 0:00:22]}  Re3 {[%clk 0:00:03]} 45. Be4 {[%clk 0:00:20]}  Rxh3+ {[%clk 0:00:03]} 46. Kxh3 {[%clk 0:00:21]}  Re8 {[%clk 0:00:04]} 47. Qf6 {[%clk 0:00:18]}  Rxe5 {[%clk 0:00:02]} 48. Qd8+ {[%clk 0:00:19]}  Qf8 {[%clk 0:00:03]} 49. Bxh7+ {[%clk 0:00:19]}  Kg7 {[%clk 0:00:03]} 50. Qxf8+ {[%clk 0:00:20]}  Kxf8 {[%clk 0:00:04]} 51. g6 {[%clk 0:00:20]}  Bc4 {[%clk 0:00:02]} 52. gxf7 {[%clk 0:00:20]}  Rh5+ {[%clk 0:00:03]} 53. Kg4 {[%clk 0:00:20]}  Rxh7 {[%clk 0:00:04]} 54. Rf6 {[%clk 0:00:20]}  Bb5 {[%clk 0:00:03]} 55. Rd6 {[%clk 0:00:15]}  Rxf7 {[%clk 0:00:03]} 56. Kg5 {[%clk 0:00:16]}  Ke7 {[%clk 0:00:04]} 57. Kg4 {[%clk 0:00:13]}  Rf6 {[%clk 0:00:04]} 0-1


[Site "https://www.chess.com"]

[Event "Titled Tuesday Blitz June 20 Early 2023"]
[White "Lavrik, Dmitry"]
[Black "Henriquez Villagra, Cristobal"]
[WhiteFideId "24113190"]
[BlackFideId "3409350"]
[WhiteElo "2345"]
[BlackElo "2542"]
[Result "0-1"]
[Round "8"]
[TimeControl "180+2"]
[Date "2023.06.20"]
[WhiteClock "0:01:10"]
[BlackClock "0:00:54"]
[Board "24"]

1. c4 {[%clk 0:03:00]}  d6 {[%clk 0:03:00]} 2. g3 {[%clk 0:02:57]}  g6 {[%clk 0:02:57]} 3. Bg2 {[%clk 0:02:58]}  Bg7 {[%clk 0:02:57]} 4. Nc3 {[%clk 0:02:58]}  e5 {[%clk 0:02:58]} 5. d3 {[%clk 0:02:57]}  f5 {[%clk 0:02:57]} 6. Rb1 {[%clk 0:02:54]}  Nf6 {[%clk 0:02:58]} 7. b4 {[%clk 0:02:54]}  O-O {[%clk 0:02:58]} 8. Nf3 {[%clk 0:02:53]}  c6 {[%clk 0:02:29]} 9. O-O {[%clk 0:02:52]}  Kh8 {[%clk 0:02:29]} 10. b5 {[%clk 0:02:47]}  c5 {[%clk 0:02:24]} 11. Bg5 {[%clk 0:02:42]}  Be6 {[%clk 0:02:22]} 12. Ne1 {[%clk 0:02:40]}  Qc8 {[%clk 0:02:17]} 13. Bxf6 {[%clk 0:02:39]}  Bxf6 {[%clk 0:02:18]} 14. a4 {[%clk 0:02:37]}  Nd7 {[%clk 0:02:12]} 15. Nc2 {[%clk 0:02:34]}  Bg7 {[%clk 0:02:09]} 16. a5 {[%clk 0:02:32]}  e4 {[%clk 0:02:06]} 17. Qd2 {[%clk 0:02:30]}  Ne5 {[%clk 0:02:06]} 18. Ne3 {[%clk 0:02:26]}  Rf7 {[%clk 0:02:04]} 19. dxe4 {[%clk 0:02:20]}  Nxc4 {[%clk 0:01:57]} 20. Nxc4 {[%clk 0:02:20]}  Bxc4 {[%clk 0:01:58]} 21. exf5 {[%clk 0:02:17]}  Qxf5 {[%clk 0:01:37]} 22. a6 {[%clk 0:02:14]}  Rd8 {[%clk 0:01:38]} 23. axb7 {[%clk 0:02:11]}  d5 {[%clk 0:01:39]} 24. e4 {[%clk 0:02:10]}  Qe5 {[%clk 0:01:33]} 25. Nxd5 {[%clk 0:02:02]}  Bxf1 {[%clk 0:01:27]} 26. Rxf1 {[%clk 0:01:55]}  Rxb7 {[%clk 0:01:26]} 27. Qa5 {[%clk 0:01:55]}  Rdb8 {[%clk 0:01:24]} 28. f4 {[%clk 0:01:53]}  Qd4+ {[%clk 0:01:24]} 29. Kh1 {[%clk 0:01:53]}  Rxb5 {[%clk 0:01:24]} 30. Qxa7 {[%clk 0:01:32]}  Rb1 {[%clk 0:01:17]} 31. h4 {[%clk 0:01:21]}  c4 {[%clk 0:00:55]} 32. Kh2 {[%clk 0:01:10]}  Qxa7 {[%clk 0:00:54]} 0-1


[Site "https://www.chess.com"]

[Event "Titled Tuesday Blitz June 20 Early 2023"]
[White "Petrosian, Karlen"]
[Black "Galchenko, Matvey"]
[WhiteFideId "4176146"]
[BlackFideId "24175480"]
[WhiteElo "2345"]
[BlackElo "2423"]
[Result "1-0"]
[Round "8"]
[TimeControl "180+2"]
[Date "2023.06.20"]
[WhiteClock "0:00:21"]
[BlackClock "0:00:01"]
[Board "27"]

1. e4 {[%clk 0:03:00]}  e6 {[%clk 0:02:59]} 2. Qe2 {[%clk 0:03:01]}  d5 {[%clk 0:03:00]} 3. exd5 {[%clk 0:03:01]}  Nf6 {[%clk 0:02:59]} 4. dxe6 {[%clk 0:02:58]}  Bxe6 {[%clk 0:02:58]} 5. Nf3 {[%clk 0:02:59]}  Bd6 {[%clk 0:02:55]} 6. Qb5+ {[%clk 0:02:58]}  Nbd7 {[%clk 0:02:54]} 7. d4 {[%clk 0:02:53]}  O-O {[%clk 0:02:53]} 8. Bd3 {[%clk 0:02:53]}  Bd5 {[%clk 0:02:43]} 9. c4 {[%clk 0:02:49]}  Re8+ {[%clk 0:02:31]} 10. Be3 {[%clk 0:02:49]}  a6 {[%clk 0:01:59]} 11. Qb3 {[%clk 0:02:48]}  Bxf3 {[%clk 0:01:59]} 12. gxf3 {[%clk 0:02:49]}  Nh5 {[%clk 0:01:52]} 13. Qc2 {[%clk 0:02:42]}  Qh4 {[%clk 0:01:48]} 14. Kd2 {[%clk 0:01:56]}  Bf4 {[%clk 0:01:15]} 15. Bxh7+ {[%clk 0:01:44]}  Kh8 {[%clk 0:01:14]} 16. Kd1 {[%clk 0:01:26]}  Bxe3 {[%clk 0:01:05]} 17. fxe3 {[%clk 0:01:27]}  Rxe3 {[%clk 0:01:05]} 18. Be4 {[%clk 0:01:17]}  Ng3 {[%clk 0:00:57]} 19. Qf2 {[%clk 0:01:14]}  Nf5 {[%clk 0:00:40]} 20. Qxh4+ {[%clk 0:01:11]}  Nxh4 {[%clk 0:00:41]} 21. Kd2 {[%clk 0:01:09]}  Rxf3 {[%clk 0:00:41]} 22. Bxf3 {[%clk 0:01:09]}  Nxf3+ {[%clk 0:00:42]} 23. Ke3 {[%clk 0:01:04]}  Nh4 {[%clk 0:00:40]} 24. Nc3 {[%clk 0:01:04]}  c5 {[%clk 0:00:39]} 25. d5 {[%clk 0:01:00]}  Re8+ {[%clk 0:00:39]} 26. Kf4 {[%clk 0:00:46]}  Ng6+ {[%clk 0:00:38]} 27. Kg3 {[%clk 0:00:46]}  Re3+ {[%clk 0:00:38]} 28. Kf2 {[%clk 0:00:46]}  Rh3 {[%clk 0:00:38]} 29. Rag1 {[%clk 0:00:37]}  Nde5 {[%clk 0:00:37]} 30. Rg3 {[%clk 0:00:37]}  Rh4 {[%clk 0:00:37]} 31. b3 {[%clk 0:00:36]}  Ng4+ {[%clk 0:00:26]} 32. Ke2 {[%clk 0:00:33]}  Nf4+ {[%clk 0:00:24]} 33. Kd2 {[%clk 0:00:31]}  Nf2 {[%clk 0:00:18]} 34. Rf1 {[%clk 0:00:24]}  Rxh2 {[%clk 0:00:18]} 35. Ke3 {[%clk 0:00:23]}  N4d3 {[%clk 0:00:10]} 36. Ne4 {[%clk 0:00:20]}  f5 {[%clk 0:00:02]} 37. Nxf2 {[%clk 0:00:19]}  f4+ {[%clk 0:00:03]} 38. Kxd3 {[%clk 0:00:19]}  fxg3 {[%clk 0:00:03]} 39. Ne4 {[%clk 0:00:20]}  g2 {[%clk 0:00:02]} 40. Rg1 {[%clk 0:00:20]}  Rh3+ {[%clk 0:00:02]} 41. Ke2 {[%clk 0:00:21]}  Rh4 {[%clk 0:00:03]} 42. Nf2 {[%clk 0:00:20]}  Rh2 {[%clk 0:00:02]} 43. Kf3 {[%clk 0:00:20]}  Rh5 {[%clk 0:00:01]} 44. Rxg2 {[%clk 0:00:21]} 1-0


[Site "https://www.chess.com"]

[Event "Titled Tuesday Blitz June 20 Early 2023"]
[White "Goryachkina, Aleksandra"]
[Black "Bharath Subramaniyam H"]
[WhiteFideId "4147103"]
[BlackFideId "46634827"]
[WhiteElo "2471"]
[BlackElo "2400"]
[Result "0-1"]
[Round "8"]
[TimeControl "180+2"]
[Date "2023.06.20"]
[WhiteClock "0:00:00"]
[BlackClock "0:00:12"]
[Board "28"]

1. e4 {[%clk 0:02:59]}  c6 {[%clk 0:02:42]} 2. d4 {[%clk 0:02:57]}  d5 {[%clk 0:02:43]} 3. e5 {[%clk 0:02:57]}  Bf5 {[%clk 0:02:43]} 4. Bd3 {[%clk 0:02:56]}  Bxd3 {[%clk 0:02:42]} 5. Qxd3 {[%clk 0:02:57]}  e6 {[%clk 0:02:41]} 6. Ne2 {[%clk 0:02:53]}  Nd7 {[%clk 0:02:37]} 7. O-O {[%clk 0:02:51]}  c5 {[%clk 0:02:37]} 8. c3 {[%clk 0:02:47]}  Ne7 {[%clk 0:02:35]} 9. Nd2 {[%clk 0:02:23]}  Nc6 {[%clk 0:02:31]} 10. Nf3 {[%clk 0:02:22]}  Be7 {[%clk 0:02:29]} 11. Be3 {[%clk 0:02:18]}  O-O {[%clk 0:02:23]} 12. Ng3 {[%clk 0:02:11]}  Qb6 {[%clk 0:02:18]} 13. Qe2 {[%clk 0:02:03]}  Qa6 {[%clk 0:02:12]} 14. Qd2 {[%clk 0:01:37]}  cxd4 {[%clk 0:02:06]} 15. cxd4 {[%clk 0:01:37]}  Rac8 {[%clk 0:02:02]} 16. Bg5 {[%clk 0:01:31]}  Bxg5 {[%clk 0:01:52]} 17. Qxg5 {[%clk 0:01:22]}  Qd3 {[%clk 0:01:50]} 18. Rfd1 {[%clk 0:01:19]}  Qg6 {[%clk 0:01:50]} 19. Qd2 {[%clk 0:01:19]}  h6 {[%clk 0:01:42]} 20. h3 {[%clk 0:01:18]}  Rc7 {[%clk 0:01:40]} 21. Rac1 {[%clk 0:01:02]}  Rfc8 {[%clk 0:01:39]} 22. Rc3 {[%clk 0:01:01]}  Ne7 {[%clk 0:01:13]} 23. Rxc7 {[%clk 0:00:37]}  Rxc7 {[%clk 0:01:14]} 24. Qa5 {[%clk 0:00:37]}  b6 {[%clk 0:01:13]} 25. Qb4 {[%clk 0:00:35]}  Qc2 {[%clk 0:01:04]} 26. Rd2 {[%clk 0:00:34]}  Qc1+ {[%clk 0:01:02]} 27. Kh2 {[%clk 0:00:34]}  Ng6 {[%clk 0:00:58]} 28. Ne2 {[%clk 0:00:27]}  Qc4 {[%clk 0:00:44]} 29. Qa3 {[%clk 0:00:25]}  f6 {[%clk 0:00:38]} 30. exf6 {[%clk 0:00:10]}  Nxf6 {[%clk 0:00:39]} 31. Rd3 {[%clk 0:00:05]}  Ne4 {[%clk 0:00:35]} 32. Ng3 {[%clk 0:00:04]}  Qc2 {[%clk 0:00:33]} 33. Nxe4 {[%clk 0:00:03]}  dxe4 {[%clk 0:00:33]} 34. Ne1 {[%clk 0:00:03]}  Qxf2 {[%clk 0:00:31]} 35. Rg3 {[%clk 0:00:03]}  Nf4 {[%clk 0:00:26]} 36. Qe3 {[%clk 0:00:02]}  Qf1 {[%clk 0:00:15]} 37. Qxe4 {[%clk 0:00:02]}  Rc1 {[%clk 0:00:15]} 38. Rf3 {[%clk 0:00:00]}  Rxe1 {[%clk 0:00:12]} 0-1


[Site "https://www.chess.com"]

[Event "Titled Tuesday Blitz June 20 Early 2023"]
[White "Donchenko, Alexander"]
[Black "Begmuratov, Alisher"]
[WhiteFideId "24603295"]
[BlackFideId "14203367"]
[WhiteElo "2554"]
[BlackElo "2387"]
[Result "1-0"]
[Round "8"]
[TimeControl "180+2"]
[Date "2023.06.20"]
[WhiteClock "0:01:00"]
[BlackClock "0:00:03"]
[Board "29"]

1. Nf3 {[%clk 0:03:00]}  Nf6 {[%clk 0:02:58]} 2. g3 {[%clk 0:03:01]}  g6 {[%clk 0:02:58]} 3. Bg2 {[%clk 0:03:02]}  Bg7 {[%clk 0:02:58]} 4. O-O {[%clk 0:03:03]}  c5 {[%clk 0:02:58]} 5. d4 {[%clk 0:03:04]}  cxd4 {[%clk 0:02:57]} 6. Nxd4 {[%clk 0:03:04]}  d5 {[%clk 0:02:57]} 7. c4 {[%clk 0:03:05]}  O-O {[%clk 0:02:49]} 8. cxd5 {[%clk 0:03:03]}  Nxd5 {[%clk 0:02:40]} 9. Nb5 {[%clk 0:03:04]}  e6 {[%clk 0:02:40]} 10. N1c3 {[%clk 0:03:03]}  a6 {[%clk 0:02:27]} 11. Nxd5 {[%clk 0:03:03]}  axb5 {[%clk 0:02:22]} 12. Nc3 {[%clk 0:03:00]}  b4 {[%clk 0:02:19]} 13. Qxd8 {[%clk 0:03:00]}  Rxd8 {[%clk 0:02:20]} 14. Ne4 {[%clk 0:03:01]}  Nc6 {[%clk 0:02:16]} 15. Bg5 {[%clk 0:03:00]}  Rd4 {[%clk 0:01:55]} 16. e3 {[%clk 0:02:55]}  Rxe4 {[%clk 0:01:47]} 17. Bxe4 {[%clk 0:02:56]}  f6 {[%clk 0:01:47]} 18. Bh4 {[%clk 0:02:44]}  g5 {[%clk 0:01:46]} 19. Rfd1 {[%clk 0:02:43]}  gxh4 {[%clk 0:01:45]} 20. Rac1 {[%clk 0:02:32]}  Ne7 {[%clk 0:00:43]} 21. Rd8+ {[%clk 0:02:16]}  Kf7 {[%clk 0:00:43]} 22. Bxh7 {[%clk 0:02:06]}  f5 {[%clk 0:00:41]} 23. Rc7 {[%clk 0:01:56]}  Be5 {[%clk 0:00:38]} 24. Bg8+ {[%clk 0:01:25]}  Kf6 {[%clk 0:00:19]} 25. Rf8+ {[%clk 0:01:17]}  Kg7 {[%clk 0:00:18]} 26. Rf7+ {[%clk 0:01:17]}  Kxg8 {[%clk 0:00:18]} 27. Rcxe7 {[%clk 0:01:18]}  Rxa2 {[%clk 0:00:16]} 28. gxh4 {[%clk 0:01:11]}  Rxb2 {[%clk 0:00:15]} 29. h5 {[%clk 0:01:10]}  Bd6 {[%clk 0:00:10]} 30. Rg7+ {[%clk 0:01:08]}  Kh8 {[%clk 0:00:09]} 31. Rh7+ {[%clk 0:01:06]}  Kg8 {[%clk 0:00:09]} 32. Reg7+ {[%clk 0:01:07]}  Kf8 {[%clk 0:00:09]} 33. h6 {[%clk 0:01:08]}  Ke8 {[%clk 0:00:09]} 34. Rh8+ {[%clk 0:01:07]}  Bf8 {[%clk 0:00:09]} 35. Rgg8 {[%clk 0:01:07]}  Rb1+ {[%clk 0:00:10]} 36. Kg2 {[%clk 0:01:07]}  b3 {[%clk 0:00:10]} 37. Rxf8+ {[%clk 0:01:07]}  Ke7 {[%clk 0:00:10]} 38. Re8+ {[%clk 0:01:05]}  Kf6 {[%clk 0:00:09]} 39. h7 {[%clk 0:01:01]}  b2 {[%clk 0:00:09]} 40. Rhf8+ {[%clk 0:01:01]}  Kg6 {[%clk 0:00:09]} 41. h8=Q {[%clk 0:01:01]}  Rg1+ {[%clk 0:00:03]} 42. Kh3 {[%clk 0:01:00]} 1-0


[Site "https://www.chess.com"]

[Event "Titled Tuesday Blitz June 20 Early 2023"]
[White "Ilamparthi A R"]
[Black "Idani, Pouya"]
[WhiteFideId "45015775"]
[BlackFideId "12510130"]
[WhiteElo "2348"]
[BlackElo "2574"]
[Result "1-0"]
[Round "8"]
[TimeControl "180+2"]
[Date "2023.06.20"]
[WhiteClock "0:00:51"]
[BlackClock "0:00:54"]
[Board "30"]

1. e4 {[%clk 0:02:59]}  c5 {[%clk 0:03:00]} 2. Nf3 {[%clk 0:02:58]}  d6 {[%clk 0:03:00]} 3. g3 {[%clk 0:02:58]}  Nf6 {[%clk 0:03:00]} 4. d3 {[%clk 0:02:58]}  g6 {[%clk 0:03:00]} 5. Bg2 {[%clk 0:02:57]}  Bg7 {[%clk 0:03:01]} 6. O-O {[%clk 0:02:58]}  O-O {[%clk 0:03:02]} 7. c3 {[%clk 0:02:57]}  Nc6 {[%clk 0:03:02]} 8. Re1 {[%clk 0:02:58]}  Rb8 {[%clk 0:02:51]} 9. a4 {[%clk 0:02:44]}  a6 {[%clk 0:02:48]} 10. h3 {[%clk 0:02:44]}  b5 {[%clk 0:02:46]} 11. axb5 {[%clk 0:02:43]}  axb5 {[%clk 0:02:47]} 12. d4 {[%clk 0:02:44]}  Nd7 {[%clk 0:02:39]} 13. Be3 {[%clk 0:02:25]}  cxd4 {[%clk 0:02:31]} 14. cxd4 {[%clk 0:02:25]}  Nb6 {[%clk 0:02:31]} 15. b3 {[%clk 0:02:21]}  Bb7 {[%clk 0:02:24]} 16. Qd2 {[%clk 0:02:14]}  Nd7 {[%clk 0:02:17]} 17. Bh6 {[%clk 0:02:10]}  e5 {[%clk 0:02:03]} 18. Bxg7 {[%clk 0:02:01]}  Kxg7 {[%clk 0:02:04]} 19. d5 {[%clk 0:02:02]}  Ne7 {[%clk 0:02:04]} 20. b4 {[%clk 0:01:59]}  h6 {[%clk 0:02:00]} 21. Nc3 {[%clk 0:01:58]}  f5 {[%clk 0:01:44]} 22. exf5 {[%clk 0:01:25]}  gxf5 {[%clk 0:01:26]} 23. Nh4 {[%clk 0:01:16]}  f4 {[%clk 0:01:19]} 24. Kh2 {[%clk 0:01:06]}  Qb6 {[%clk 0:01:08]} 25. gxf4 {[%clk 0:00:54]}  Rxf4 {[%clk 0:01:05]} 26. Qxf4 {[%clk 0:00:52]}  exf4 {[%clk 0:01:02]} 27. Rxe7+ {[%clk 0:00:52]}  Kf6 {[%clk 0:01:02]} 28. Rxd7 {[%clk 0:00:52]}  Qxf2 {[%clk 0:00:54]} 29. Ne4+ {[%clk 0:00:51]} 1-0


[Site "https://www.chess.com"]

[Event "Titled Tuesday Blitz June 20 Early 2023"]
[White "Agibileg, Uurtsaikh"]
[Black "Gadimbayli, Abdulla"]
[WhiteFideId "4901606"]
[BlackFideId "13404938"]
[WhiteElo "2353"]
[BlackElo "2386"]
[Result "0-1"]
[Round "8"]
[TimeControl "180+2"]
[Date "2023.06.20"]
[WhiteClock "0:00:16"]
[BlackClock "0:00:17"]
[Board "31"]

1. d4 {[%clk 0:03:00]}  d5 {[%clk 0:02:59]} 2. c4 {[%clk 0:03:01]}  e5 {[%clk 0:02:59]} 3. dxe5 {[%clk 0:03:00]}  d4 {[%clk 0:03:00]} 4. e3 {[%clk 0:02:56]}  Bb4+ {[%clk 0:02:59]} 5. Bd2 {[%clk 0:02:53]}  dxe3 {[%clk 0:03:00]} 6. fxe3 {[%clk 0:02:38]}  Qh4+ {[%clk 0:02:48]} 7. g3 {[%clk 0:02:37]}  Qe4 {[%clk 0:02:48]} 8. Qf3 {[%clk 0:02:38]}  Bxd2+ {[%clk 0:02:49]} 9. Nxd2 {[%clk 0:02:37]}  Qxe5 {[%clk 0:02:50]} 10. Bg2 {[%clk 0:02:28]}  Nf6 {[%clk 0:02:44]} 11. Ne2 {[%clk 0:02:25]}  Nc6 {[%clk 0:02:36]} 12. O-O {[%clk 0:02:10]}  O-O {[%clk 0:02:28]} 13. Nc3 {[%clk 0:02:08]}  Be6 {[%clk 0:02:20]} 14. Qf4 {[%clk 0:01:55]}  Rad8 {[%clk 0:02:06]} 15. Bxc6 {[%clk 0:01:53]}  Qxf4 {[%clk 0:02:06]} 16. exf4 {[%clk 0:01:54]}  Rxd2 {[%clk 0:02:06]} 17. Bxb7 {[%clk 0:01:50]}  Rb8 {[%clk 0:01:56]} 18. Rfd1 {[%clk 0:01:38]}  Rxb2 {[%clk 0:01:53]} 19. Bd5 {[%clk 0:01:37]}  Ng4 {[%clk 0:01:28]} 20. Rab1 {[%clk 0:01:28]}  Ne3 {[%clk 0:01:15]} 21. Rxb2 {[%clk 0:01:13]}  Rxb2 {[%clk 0:01:16]} 22. Re1 {[%clk 0:01:13]}  Ng4 {[%clk 0:00:32]} 23. Rxe6 {[%clk 0:00:52]}  fxe6 {[%clk 0:00:27]} 24. Bxe6+ {[%clk 0:00:53]}  Kf8 {[%clk 0:00:28]} 25. Bxg4 {[%clk 0:00:54]}  Rc2 {[%clk 0:00:28]} 26. Nb5 {[%clk 0:00:39]}  Rxa2 {[%clk 0:00:25]} 27. Nxc7 {[%clk 0:00:37]}  a5 {[%clk 0:00:25]} 28. c5 {[%clk 0:00:21]}  a4 {[%clk 0:00:23]} 29. c6 {[%clk 0:00:20]}  a3 {[%clk 0:00:21]} 30. Be6 {[%clk 0:00:16]}  Rc2 {[%clk 0:00:18]} 31. Nb5 {[%clk 0:00:16]}  Rxc6 {[%clk 0:00:16]} 32. Nxa3 {[%clk 0:00:05]}  Rxe6 {[%clk 0:00:16]} 33. Kg2 {[%clk 0:00:05]}  Re2+ {[%clk 0:00:15]} 34. Kh3 {[%clk 0:00:04]}  Kf7 {[%clk 0:00:15]} 35. Nc4 {[%clk 0:00:05]}  Ke6 {[%clk 0:00:14]} 36. Ne5 {[%clk 0:00:05]}  Kf5 {[%clk 0:00:12]} 37. Nf3 {[%clk 0:00:05]}  Rb2 {[%clk 0:00:12]} 38. Ng5 {[%clk 0:00:05]}  h6 {[%clk 0:00:10]} 39. Nf7 {[%clk 0:00:04]}  Rd2 {[%clk 0:00:08]} 40. Ne5 {[%clk 0:00:02]}  g5 {[%clk 0:00:08]} 41. Ng4 {[%clk 0:00:03]}  h5 {[%clk 0:00:06]} 42. Nh6+ {[%clk 0:00:03]}  Kg6 {[%clk 0:00:03]} 43. fxg5 {[%clk 0:00:04]}  Kxg5 {[%clk 0:00:03]} 44. Nf7+ {[%clk 0:00:04]}  Kf6 {[%clk 0:00:03]} 45. Nh6 {[%clk 0:00:03]}  Kg6 {[%clk 0:00:03]} 46. Ng8 {[%clk 0:00:04]}  Rd7 {[%clk 0:00:04]} 47. Kh4 {[%clk 0:00:03]}  Kg7 {[%clk 0:00:04]} 48. Kxh5 {[%clk 0:00:03]}  Kxg8 {[%clk 0:00:05]} 49. h4 {[%clk 0:00:04]}  Kg7 {[%clk 0:00:04]} 50. g4 {[%clk 0:00:04]}  Rd5+ {[%clk 0:00:05]} 51. g5 {[%clk 0:00:05]}  Rd4 {[%clk 0:00:05]} 52. g6 {[%clk 0:00:05]}  Ra4 {[%clk 0:00:06]} 53. Kg5 {[%clk 0:00:06]}  Ra5+ {[%clk 0:00:07]} 54. Kg4 {[%clk 0:00:06]}  Kxg6 {[%clk 0:00:08]} 55. h5+ {[%clk 0:00:06]}  Kh6 {[%clk 0:00:09]} 56. Kg3 {[%clk 0:00:07]}  Ra4 {[%clk 0:00:10]} 57. Kf2 {[%clk 0:00:08]}  Kxh5 {[%clk 0:00:10]} 58. Ke2 {[%clk 0:00:09]}  Kg4 {[%clk 0:00:11]} 59. Kd1 {[%clk 0:00:10]}  Ra3 {[%clk 0:00:12]} 60. Kc1 {[%clk 0:00:10]}  Rh3 {[%clk 0:00:13]} 61. Kb1 {[%clk 0:00:10]}  Kf4 {[%clk 0:00:14]} 62. Ka1 {[%clk 0:00:11]}  Rh2 {[%clk 0:00:14]} 63. Kb1 {[%clk 0:00:12]}  Ke4 {[%clk 0:00:15]} 64. Ka1 {[%clk 0:00:13]}  Kd3 {[%clk 0:00:15]} 65. Kb1 {[%clk 0:00:14]}  Kc3 {[%clk 0:00:16]} 66. Ka1 {[%clk 0:00:15]}  Kb3 {[%clk 0:00:16]} 67. Kb1 {[%clk 0:00:16]}  Rh1# {[%clk 0:00:17]} 0-1


[Site "https://www.chess.com"]

[Event "Titled Tuesday Blitz June 20 Early 2023"]
[White "Beerdsen, Thomas"]
[Black "Souleidis, Georgios"]
[WhiteFideId "1030108"]
[BlackFideId "4206827"]
[WhiteElo "2553"]
[BlackElo "2401"]
[Result "1-0"]
[Round "8"]
[TimeControl "180+2"]
[Date "2023.06.20"]
[WhiteClock "0:01:03"]
[BlackClock "0:00:00"]
[Board "32"]

1. e4 {[%clk 0:03:00]}  c5 {[%clk 0:02:54]} 2. Nf3 {[%clk 0:03:01]}  e6 {[%clk 0:02:53]} 3. d4 {[%clk 0:03:01]}  cxd4 {[%clk 0:02:54]} 4. Bg5 {[%clk 0:03:02]}  Be7 {[%clk 0:02:50]} 5. Bxe7 {[%clk 0:03:01]}  Nxe7 {[%clk 0:02:49]} 6. Qxd4 {[%clk 0:03:02]}  O-O {[%clk 0:02:44]} 7. Nc3 {[%clk 0:03:02]}  d5 {[%clk 0:02:39]} 8. O-O-O {[%clk 0:02:55]}  Nbc6 {[%clk 0:02:26]} 9. Qe3 {[%clk 0:02:48]}  Qa5 {[%clk 0:02:21]} 10. Kb1 {[%clk 0:02:36]}  Rd8 {[%clk 0:02:07]} 11. Be2 {[%clk 0:02:05]}  a6 {[%clk 0:02:04]} 12. Rd2 {[%clk 0:01:52]}  b5 {[%clk 0:01:46]} 13. exd5 {[%clk 0:01:44]}  exd5 {[%clk 0:01:34]} 14. Rhd1 {[%clk 0:01:41]}  Be6 {[%clk 0:01:03]} 15. a3 {[%clk 0:01:16]}  b4 {[%clk 0:00:54]} 16. axb4 {[%clk 0:01:17]}  Qxb4 {[%clk 0:00:54]} 17. Na2 {[%clk 0:01:09]}  Qa5 {[%clk 0:00:45]} 18. Nd4 {[%clk 0:01:07]}  Nxd4 {[%clk 0:00:43]} 19. Qxd4 {[%clk 0:01:08]}  Nc6 {[%clk 0:00:35]} 20. Qc3 {[%clk 0:01:06]}  Qb6 {[%clk 0:00:36]} 21. Bf3 {[%clk 0:01:04]}  Rac8 {[%clk 0:00:34]} 22. Bxd5 {[%clk 0:01:02]}  Bxd5 {[%clk 0:00:00]} 23. Rxd5 {[%clk 0:01:03]} 1-0


[Site "https://www.chess.com"]